Cogmind - Beta 17.1 @@@ ROGUE MODE // 2026.09.06 @ 15:45:32 Player: pickelover66 Result: Destroyed by as-45069 with Assembled Blade Performance ------------- Evolutions (0) 0 Regions Visited (4) 800 Robots Destroyed (17) 85 Value Destroyed (342) 342 Prototype IDs (28) 560 Alien Tech Used (0) 0 Bonus (300) 300 TOTAL SCORE: 2087 Bonus ------- Aligned with FarCom 300 Cogmind --------- Core Integrity 0/250 Matter 247/300 Energy 248/250 System Corruption 0% Temperature Warm (163) Movement Core (350) Ox6 Location -9/Mines Parts ------- > --- POWER (1) -------- Ion Engine > --- PROPULSION (2) --- (None) > --- UTILITY (2) ------ Medium Storage Unit Modified TNC > --- WEAPON (2) ------- Particle Gun Light Cannon > --- INVENTORY (10) --- Wheel Heat Sink Large Matter Pod (150) Weight Redist. System Sensor Array Light Armor Plating Heavy Explosive Trap Peak State ------------ > --- POWER ------------ Light Nuclear Core > --- PROPULSION ------- Wheel Compact Wheel > --- UTILITY ---------- Medium Storage Unit Modified TNC > --- WEAPON ----------- Particle Gun Beam Cannon > --- INVENTORY -------- Ion Engine Wheel Heat Sink Large Matter Pod Weight Redist. System Light Armor Plating Light Cannon Light Cannon Grenade Launcher Heavy Explosive Trap [Rating: 16] Favorites ----------- Power Ion Engine Engine Ion Engine Power Core Light Nuclear Core Propulsion Wheel Wheel Wheel Utility Medium Storage Unit Device Sensor Array Storage Medium Storage Unit Processor Modified TNC Protection Light Armor Plating Weapon Beam Cannon Energy Gun Particle Gun Energy Cannon Beam Cannon Ballistic Gun Assault Rifle Ballistic Cannon Light Cannon Launcher Grenade Launcher Build | -11 -10 -10 -10 -9 ------- Run | Yrd Mat Min Exi Min Slots Evolved . | . . . . . Power . | . . . . . Propulsion . | . . . . . Utility . | . . . . . Weapon . | . . . . . Parts Attached 21 | 7 9 4 1 . Power 4 | 1 2 1 . . Engine 2 | 1 1 . . . Core 2 | . 1 1 . . Reactor . | . . . . . Propulsion 3 | 2 1 . . . Treads . | . . . . . Leg . | . . . . . Wheel 3 | 2 1 . . . Hover . | . . . . . Flight . | . . . . . Utility 6 | 1 3 1 1 . Device 2 | . 2 . . . Storage 2 | 1 1 . . . Processor 1 | . . . 1 . Hackware . | . . . . . Protection 1 | . . 1 . . Artifact . | . . . . . Weapon 8 | 3 3 2 . . Energy Gun 2 | 1 . 1 . . Energy Cannon 1 | . 1 . . . Ballistic Gun 2 | 2 . . . . Ballistic Cannon 2 | . 2 . . . Launcher 1 | . . 1 . . Special Weapon . | . . . . . Impact Weapon . | . . . . . Slashing Weapon . | . . . . . Piercing Weapon . | . . . . . Special Melee Weapon . | . . . . . Unidentified Prototypes 1 | . . . 1 . Parts Lost 5 | . 1 . . 4 Power 2 | . 1 . . 1 Propulsion 1 | . . . . 1 Utility . | . . . . . Weapon 2 | . . . . 2 Highest Loss Streak 4 | . 1 . . 4 To Critical Strikes . | . . . . . Average Backups 9 | 3 9 9 9 8 Power 1 | . 1 1 1 . Propulsion 1 | 2 2 1 1 1 Utility 3 | . 2 4 4 5 Weapon 2 | . 3 3 2 1 Tool/Special . | . . . . . Unused Backups 12 | . 7 1 . 4 Power 1 | . 1 . . . Propulsion 7 | . 5 1 . 1 Utility 4 | . 1 . . 3 Weapon . | . . . . . Tool/Special . | . . . . . Average Slot Usage (%) 99 | . 99 100 100 92 Engine 7 | . 12 11 . 3 Core 6 | . 1 2 14 10 Wheel 27 | . 28 28 28 26 Device 10 | . 12 9 11 . Storage 14 | . 14 14 14 14 Processor 1 | . . . 2 14 Protection 1 | . . 4 . . Energy Gun 8 | . 9 2 14 3 Energy Cannon 9 | . 1 14 14 10 Ballistic Gun 7 | . 12 9 . . Ballistic Cannon 1 | . 4 . . . Peak Build Rating 16 | 6 10 11 16 16 Average Rating 9 | 5 7 8 11 14 On Entrance 8 | . 6 8 11 16 Avg Prop Armor Cover (%) . | . . . . . Naked Turns . | . . . . . Heaviest Build 24 | 13 23 24 24 21 Greatest Support 26 | 26 26 26 26 26 Greatest Overweight (x) 1 | . . . . 1 Average Overweight (x) . | . . . . . Largest Inventory Capacity 10 | 8 10 10 10 10 Average Capacity 9 | 7 9 10 10 10 Most Carried 10 | 6 10 10 10 10 Average Carried 9 | 3 9 9 9 9 Final Capacity 10 | 8 10 10 10 10 Final Carried 10 | 6 10 10 10 7 Class Distribution -------------------- 100% | Mutant Dominant Class ---------------- Mutant | -10/Materials Mutant | -10/Mines Mutant | -10/Exiles Mutant | -9/Mines Resources | -11 -10 -10 -10 -9 ----------- Run | Yrd Mat Min Exi Min Matter Collected 707 | 194 341 148 . 24 Remotely . | . . . . . Salvage Created 459 | . 321 87 . 51 Parts 32 | . 24 5 . 3 Haulers Intercepted 2 | . 2 . . . Recyclers Shooed . | . . . . . Parts Field Recycled . | . . . . . Retrieved Matter . | . . . . . Parts Self-Destructed . | . . . . . Prevented . | . . . . . Parts Restored . | . . . . . Kills | -11 -10 -10 -10 -9 ------- Run | Yrd Mat Min Exi Min Combat Hostiles Destroyed 18 | . 10 3 . 5 Guns 1 | . 1 . . . Cannons 13 | . 9 1 . 3 AOE 4 | . . 2 . 2 Classes Destroyed 5 | . 4 . . 1 Tunneler 2 | . 1 . . 1 Hauler 2 | . 2 . . . Swarmer 6 | . 6 . . . Grunt 7 | . 4 3 . . Assembled 5 | . . . . 5 Best Kill Streak 4 | . 4 3 . 3 Combat Bots Only 4 | . 4 3 . 3 Max Kills in Single Turn 2 | . 1 1 . 2 Gunslinging . | . . . . . Exploded 2 | . . 1 . 2 Melee . | . . . . . Uniques/NPCs Destroyed . | . . . . . Combat | -11 -10 -10 -10 -9 -------- Run | Yrd Mat Min Exi Min Hostile Shots Fired 83 | . 41 25 . 17 Missed 29 | . 13 10 . 6 Hits 54 | . 28 15 . 11 Melee 8 | . . . . 8 Projectile 46 | . 28 15 . 3 Critical Strikes 2 | . . 1 . 1 Damage Taken 800 | . 252 232 . 316 Core 269 | . 92 63 . 114 Absorbed by Shields . | . . . . . Core Remaining (%) 100 | 100 . . . . Volleys Fired 44 | 1 26 9 . 8 Largest 2 | 2 2 2 . 2 Hottest 125 | 60 70 125 . 125 Shots Fired 88 | 2 52 18 . 16 Gun 43 | 2 33 2 . 6 Cannon 40 | . 19 13 . 8 Launcher 5 | . . 3 . 2 Special . | . . . . . Kinetic 52 | 1 41 5 . 5 Thermal 31 | 1 11 10 . 9 Explosive 5 | . . 3 . 2 Electromagnetic . | . . . . . Robot Hit Streak 11 | 2 10 7 . 11 Robot Miss Streak 5 | . 1 1 . 5 Penetration Max . | . . . . . Secondary Targets . | . . . . . Shots Hit Robots 59 | 2 35 14 . 8 Core Hits 40 | . 18 5 . 17 Critical Kills . | . . . . . Critical Parts Destroyed . | . . . . . Critical Strikes 3 | . 2 1 . . Blast 3 | . 2 1 . . Melee Attacks . | . . . . . Impact . | . . . . . Slashing . | . . . . . Piercing . | . . . . . Sneak Attacks . | . . . . . Combat Hostiles . | . . . . . Follow-up Attacks . | . . . . . Damage Inflicted 1322 | 24 505 399 . 394 Guns 305 | 24 237 30 . 14 Cannons 533 | . 268 176 . 89 Explosions 467 | . . 193 . 274 Melee . | . . . . . Ramming 17 | . . . . 17 Kinetic 547 | 13 432 48 . 54 Thermal 291 | 11 73 158 . 49 Explosive 467 | . . 193 . 274 Electromagnetic . | . . . . . Impact . | . . . . . Slashing . | . . . . . Piercing . | . . . . . Highest Corruption . | . . . . . Average Corruption . | . . . . . Corruption Purged . | . . . . . Corruption Blocked . | . . . . . Overload Shots . | . . . . . Overflow Damage . | . . . . . Projectiles . | . . . . . Explosions . | . . . . . Melee . | . . . . . Knockbacks 6 | . 4 2 . . Impact . | . . . . . Kinetic 6 | . 4 2 . . Secondary . | . . . . . Self-Inflicted Damage 33 | . . 5 . 28 Shots 2 | . . 1 . 1 Rammed 2 | . . . . 2 Targets Rammed 2 | . . . . 2 Kicked . | . . . . . Crushed . | . . . . . Highest Temperature 363 | . 63 363 . 163 Average Temperature 108 | . 26 161 . 59 Received Heat Transfer 215 | . 45 150 . 20 Effects 1 | . . 1 . . Energy Bleed 1 | . . 1 . . Siege Activations . | . . . . . Martial Activations . | . . . . . Shielding Activations . | . . . . . Robots Disrupted . | . . . . . Combat Hostiles . | . . . . . Robots Corrupted . | . . . . . Combat Hostiles . | . . . . . Parts Fried . | . . . . . Impact Corruptions . | . . . . . Robots Melted . | . . . . . Combat Hostiles . | . . . . . Parts Melted 2 | . . . . 2 Heat Transferred 644 | 25 175 333 . 111 Parts Sabotaged . | . . . . . Parts Stolen . | . . . . . Parts Stripped . | . . . . . Power Chain Reactions . | . . . . . Alert | -11 -10 -10 -10 -9 ------- Run | Yrd Mat Min Exi Min Maximum Alert Level . | . . . . . Low Security (%) 100 | 100 100 100 . 100 Level 1 . | . . . . . Level 2 . | . . . . . Level 3 . | . . . . . Level 4 . | . . . . . Level 5 . | . . . . . High Security . | . . . . . Max Security . | . . . . . Peak Influence 107 | . 107 95 . 16 Initial 26 | . . 26 . . Average 35 | . 55 25 . 1 Influence Increases 497 | . 316 160 . 21 Destroy 0b10 Robot/C 260 | . 200 60 . . Destroy 0b10 Robot/NC 20 | . 15 . . 5 Destroy Leader 54 | . 44 10 . . Successful Hack 24 | . 24 . . . Destroy Structure 34 | . 3 15 . 16 Lose Combat Pursuer 105 | . 30 75 . . Influence Decreases 497 | . 248 170 58 21 Entered New Map 100 | . . 42 58 . Time Decay 371 | . 238 128 . 5 Lost Part 26 | . 10 . . 16 Squads Dispatched 2 | . 2 . . . Investigation . | . . . . . Extermination . | . . . . . Reinforcement 2 | . 2 . . . Assault . | . . . . . Garrison . | . . . . . Intercept . | . . . . . Searches Triggered . | . . . . . Construction Impeded . | . . . . . Haulers Reinforced . | . . . . . Active Scanning Responses . | . . . . . Cargo Convoy Interrupts . | . . . . . Stealth | -11 -10 -10 -10 -9 --------- Run | Yrd Mat Min Exi Min Distress Signals 1 | . 1 . . . Communications Jammed . | . . . . . Distress Signals . | . . . . . Times Spotted 34 | . 16 7 . 11 Peak Tracking Total 15 | . 4 4 . 15 Tactical Retreats 7 | . 2 3 . 2 Traps | -11 -10 -10 -10 -9 ------- Run | Yrd Mat Min Exi Min Traps Triggered . | . . . . . Indirectly . | . . . . . Trap Hack Attempts . | . . . . . Triggered . | . . . . . Disarmed . | . . . . . Reprogrammed . | . . . . . Reused . | . . . . . Traps Extracted . | . . . . . Installed . | . . . . . Triggered . | . . . . . Most Traps Carried 1 | . . 1 1 1 Machines | -11 -10 -10 -10 -9 ---------- Run | Yrd Mat Min Exi Min Machines Disabled . | . . . . . Max in Single Turn . | . . . . . Machines Repaired . | . . . . . Machines Dismantled . | . . . . . Machines Sabotaged . | . . . . . Overloaded Fab Kills . | . . . . . Hacking | -11 -10 -10 -10 -9 --------- Run | Yrd Mat Min Exi Min Machines Accessed 9 | . 4 . 5 . Terminals 3 | . 3 . . . Fabricators . | . . . . . Repair Stations . | . . . . . Recycling Units 1 | . 1 . . . Scanalyzers . | . . . . . Garrison Access . | . . . . . Total Hacks 62 | . 12 . 50 . Successful 58 | . 8 . 50 . Failed 4 | . 4 . . . Catastrophic 1 | . 1 . . . Database Lockouts . | . . . . . Manual 2 | . . . 2 . Terminals 9 | . 9 . . . Fabricators . | . . . . . Repair Stations . | . . . . . Recycling Units 3 | . 3 . . . Scanalyzers . | . . . . . Garrison Access . | . . . . . Terminal Hacks 55 | . 5 . 50 . Record 49 | . . . 49 . Prototype ID Bank 3 | . 3 . . . Alert Level 1 | . 1 . . . Zone Layout 1 | . 1 . . . Proto ID Catalog 1 | . . . 1 . Fabricator Hacks . | . . . . . Repair Station Hacks . | . . . . . Recycling Unit Hacks 3 | . 3 . . . Process 1 | . 1 . . . Report Inventory 1 | . 1 . . . Retrieve Matter 1 | . 1 . . . Scanalyzer . | . . . . . Garrison Access Hacks . | . . . . . Unauthorized Hacks . | . . . . . Terminals . | . . . . . Fabricators . | . . . . . Repair Stations . | . . . . . Recycling Units . | . . . . . Scanalyzers . | . . . . . Garrison Access . | . . . . . Data Cores Recovered . | . . . . . Used . | . . . . . Hacking Detections 3 | . 3 . . . Full Trace Events . | . . . . . Feedback Events . | . . . . . Feedback Blocked . | . . . . . Robot Schematics Acquired . | . . . . . Robots Built . | . . . . . Authchips . | . . . . . Time . | . . . . . Total Robot Build Rating . | . . . . . Part Schematics Acquired . | . . . . . Parts Built . | . . . . . Authchips . | . . . . . Time . | . . . . . Total Part Build Rating . | . . . . . Part Studies Acquired . | . . . . . Parts Repaired . | . . . . . Time . | . . . . . Parts Recycled . | . . . . . Recycled Matter 210 | . 210 . . . Retrieved Matter 377 | . 377 . . . Retrieved Components . | . . . . . Parts Scanalyzed . | . . . . . Part Schematics Acquired . | . . . . . Parts Damaged . | . . . . . Bothacking | -11 -10 -10 -10 -9 ------------ Run | Yrd Mat Min Exi Min Used RIF Installer . | . . . . . Robots Hacked . | . . . . . Non-combat . | . . . . . Combat . | . . . . . Robot Hacks Applied . | . . . . . Relay Couplers Released . | . . . . . Fabnet Peak Effective % . | . . . . . Robots Rewired . | . . . . . Allies Hacked . | . . . . . Hacks Repelled . | . . . . . Allies | -11 -10 -10 -10 -9 -------- Run | Yrd Mat Min Exi Min Total Allies . | . . . . . Largest Group . | . . . . . Highest-Rated Group . | . . . . . Highest-Rated Ally . | . . . . . Total Orders . | . . . . . Ally Attacks . | . . . . . Total Damage . | . . . . . Kills . | . . . . . Allies Corrupted . | . . . . . Allies Melted . | . . . . . Intel | -11 -10 -10 -10 -9 ------- Run | Yrd Mat Min Exi Min Active Infowar (turns) 1557 | . 560 335 520 142 Sensors 924 | . 157 335 432 . Terrain 403 | . 403 . . . T.N.C. 230 | . . . 88 142 Robot Analysis Total . | . . . . . Derelict Logs Recovered 1 | . . 1 . . Drone Launches . | . . . . . Drone Recoveries . | . . . . . Exploration | -11 -10 -10 -10 -9 ------------- Run | Yrd Mat Min Exi Min Turns Passed 1823 | 64 617 474 526 142 Spaces Moved 1610 | 40 449 416 579 126 Core 1 | 1 . . . . Treads . | . . . . . Legs . | . . . . . Wheels 1609 | 39 449 416 579 126 Hover . | . . . . . Flight . | . . . . . Fastest Speed 50 | 50 90 90 90 90 Average Speed 89 | 89 90 90 90 90 Slowest Speed 100 | 100 90 90 90 95 Overloaded Moves . | . . . . . Propulsion Burnouts . | . . . . . Robots Hopped . | . . . . . Potential Cave-ins . | . . . . . Cave-ins Triggered . | . . . . . Exploration Rate (%) 53 | 4 66 75 94 29 Regions Visited 4 Branch Regions 3 Pre-discovered Areas 1 | . . . 1 . Known Exits Taken 1 | . . . 1 . Unknown Exits Taken 3 | 1 1 1 . . Scrap Searched 2 | . . 2 . . Spaces Dug . | . . . . . Terrain Destroyed 35 | . . 19 . 16 Melee . | . . . . . Projectile . | . . . . . AOE 35 | . . 19 . 16 Terrain Rammed . | . . . . . Walls Destroyed . | . . . . . Machines Disabled . | . . . . . Actions | -11 -10 -10 -10 -9 --------- Run | Yrd Mat Min Exi Min Total 1886 | 62 605 496 583 140 Wait 156 | 10 84 62 . . Move 1606 | 39 448 415 578 126 Hop . | . . . . . Pick Up 20 | 5 12 2 1 . Fast Attach 11 | 6 4 . 1 . Attach 4 | . 1 . . 3 Detach 1 | . 1 . . . Swap 25 | 1 17 5 1 1 Drop 17 | . 12 3 2 . Fire 44 | 1 26 9 . 8 Melee . | . . . . . Ram 2 | . . . . 2 Kick . | . . . . . Crush . | . . . . . Escape Stasis . | . . . . . Rewire . | . . . . . Trap . | . . . . . Miscellaneous . | . . . . . Route ------- -11/Scrapyard -10/Materials (discovered 3 exits: [*Mat] / [*Min x2]) -10/Mines (discovered 2 exits: [*Mat] / *Exi) -10/Exiles (discovered 2 exits: *Min x2) -9/Mines History --------- Turn | Location | Event 26 | -11/Scrapyard | Discovered new exit (range 13) 65 | -11/Scrapyard | Entered Materials 311 | -10/Materials | Build established: Mutant 505 | -10/Materials | Discovered new exit (range 10) 589 | -10/Materials | Discovered new exit (range 9) 648 | -10/Materials | Discovered new exit (range 7) 682 | -10/Materials | Entered Mines 721 | -10/Mines | Discovered new exit (range 9) 947 | -10/Mines | Found a hidden stash of uninstalled traps 1034 | -10/Mines | Core integrity fell below 50% 1109 | -10/Mines | Deemed a non-threat by the Exiles lab entrance 1109 | -10/Mines | Discovered new exit (range 5) 1156 | -10/Mines | Entered Exiles 1157 | -10/Exiles | Identified exit to Mines 1198 | -10/Exiles | Met 8R-AWN 1215 | -10/Exiles | Met EX-HEX 1262 | -10/Exiles | Met EX-DEC 1282 | -10/Exiles | Learned location of Zion (-6) 1399 | -10/Exiles | Visited The Gauntlet 1542 | -10/Exiles | Met EX-BIN 1553 | -10/Exiles | Aligned with FarCom system 1554 | -10/Exiles | Given EX-Vault access code 1590 | -10/Exiles | Opened EX-Vault 1594 | -10/Exiles | Found Prototype Processor 1594 | -10/Exiles | Identified Modified TNC 1616 | -10/Exiles | Warned to stay clear of 0b10 Research branches 1682 | -10/Exiles | Left Exiles lab with Modified TNC 1682 | -10/Exiles | Entered Mines 1701 | -9/Mines | Assembled infested the area 1706 | -9/Mines | Assisted by a Guerilla fighting off Assembled 1793 | -9/Mines | Core integrity fell below 20% 1824 | -9/Mines | Destroyed by as-45069 with Assembled Blade Last Messages --------------- 01706_ A derelict emerges from the shadows: "You need to get out of here! I've been tracking a group of Assembled to figure out where they're coming from, and they're closing on this area, come on!" 01763_ as-64550 destroyed. 01763_ as-06275 destroyed. 01764_ R-06 Scavenger destroyed. 01780_ Beam Cannon destroyed. 01781_ Grenade Launcher destroyed. 01786_ Lgt. Nuclear Core destroyed. 01803_ T-07 Excavator is excavating. 01806_ Slammed into T-07 Excavator. 01806_ Com. Wheel destroyed. 01807_ Slammed into T-07 Excavator. 01807_ T-07 Excavator destroyed. 01812_ as-91599 destroyed. 01814_ as-69179 destroyed. 01820_ Wheel severed. 01823_ as-91147 destroyed. Map ----- +----------------------------------------------------+ | ### #???????????????????????????? | | % ######### #### #???????????????????????????? | | ### ###?????# #????????????????????????????????? | | ?## ##????# #????????????????????????????????? | | ## #????# #????????????????????????????????? | | # #?????# #?????????????????????????????????? | | # ##?????# #?????????????????????????????????? | | #??????# #?????????????????????????????????? | | ## ##?????# #?????????????????????????????????? | | ?# #?????# #?????????????????????????????????? | | ?# #?????# #?????????????????????????????????? | | ?# #?????# #?????????????????????????????????? | | ?# #?????# #?????????????????????????????????? | | ?## ##????# #?????????????????????????????????? | | ??## ##???# #?????????????????????????????????? | | ???## ##??# #?????????????????????????????????? | | ????## #??# #?????????????????????????????????? | | ?????# #??# #?????????????????????????????????? | | ?????# #??# ######????????????????????????????? | | ##???# ##?# #????????????????????????????? | | #???# ### #### #????????????????????????????? | | #???# ## #??# #????????????????????????????? | | #??## ## #??# #????????????????????????????? | | #### ### #??#%#######??????????????????????? | | ## ##?# #??#= %a%#??????????????????????? | | ##?? #??#######@#??????????????????????? | | ##???###????????###??????????????????????? | | #????????????????????????????????????????? | | ##????????????????????????????????????????? | | ####?????????????????????????????????????????? | | # ##????????????????????????????????????????????? | | ####?????????????????????????????????????????????? | | ?????????????????????????????????????????????????? | | ?????????????????????????????????????????????????? | | ?????????????????????????????????????????????????? | | ?????????????????????????????????????????????????? | | ?????????????????????????????????????????????????? | | ?????????????????????????????????????????????????? | | ?????????????????????????????????????????????????? | | ?????????????????????????????????????????????????? | | ?????????????????????????????????????????????????? | | ?????????????????????????????????????????????????? | | | | | | | | | | | | | | | | | +----------------------------------------------------+ Best States ------------- Heat Dissipation 25 Energy Generation 14 Energy Capacity 250 Matter Stores 300 Matter Capacity 300 Sight Range 16 Robot Scan Range 14 Terrain Scan Range 14 Terrain Scan Density 10 Armor Coverage 150 Evasion (%) 42 Item Schematics ----------------- None Robot Schematics ------------------ None Fabricated ------------ Nothing Repaired ---------- Nothing Studied --------- None Alien Tech Used ----------------- None Achievements -------------- Sixth Sense Challenges ------------ None Game ------ Seed ChipGodOptics Manual? 0 Play Time 00:35:40 Cumulative 42.7 hours Start 2026.09.06 @ 15:08:45 End 2026.09.06 @ 15:45:32 Sessions 1 Manual Loads 0 Difficulty Rogue Special Mode None Game No. 44 Rogue 44 Adventurer 0 Explorer 0 Win Type - Total 0 Types 0/0/0/0/0/0/0/0/0/0 Lore% 19 Gallery% 25 Achievement% 21 Wizard Run 0 Options --------- Layout 1 ASCII 0 Keyboard 1 Movement Numpad Keybinds 0 Fullscreen 1 Font 24/Smallcaps Map View 50x35 Zoom Use 0% Tactical HUD 1 Map Filters NONE Filters NONE Steam 1 RUN: b35b1425-fe5d-476f-b1c0-26dc7e6e7eba